[Event "Saint Louis Norm Congress-GM 2022"]
[Site "Saint Louis"]
[Date "2022.05.20"]
[Round "2.4"]
[White "Belous, Vladimir"]
[Black "Park, Evan"]
[Result "1-0"]
[ECO "C01"]
[WhiteElo "2525"]
[BlackElo "2431"]
[Annotator "TA"]
[PlyCount "85"]
[EventDate "2022.05.20"]
[EventType "tourn"]
[EventCountry "USA"]
[SourceTitle "playchess.com"]
[Source "ChessBase"]
[SourceQuality "1"]
[TimeControl "5400+30"]

{[%evp 14,85,-10,-21,-11,-9,-3,-20,-15,-20,7,6,8,25,28,20,22,7,15,8,17,13,10,12,446,12,0,0,240,235,242,235,242,242,241,241,239,239,234,226,218,172,186,189,179,173,147,152,208,215,257,241,295,297,308,312,314,288,563,550,605,579,579,547,913,879,12837,12838,12840,12838,12843,12840,12841,12839]} 1. c4 {[%emt 0:00:05]} e6 {[%emt 0:00:05][%cal Be7e6,Be6d5][%mdl 32]} 2. e4 {[%emt 0:00:04]} d5 {[%emt 0:00:24]} 3. exd5 {[%emt 0:00:06]} exd5 {[%emt 0:00:05]} 4. d4 {[%emt 0:00:02]} Nf6 {[%emt 0:01:09]} 5. Nc3 {[%emt 0:00:07]} Bb4 {[%emt 0:01:06]} 6. Bd3 {[%emt 0:00:20][%cal Bf1d3,Bd3c4,Bc4b3][%mdl 32]} O-O {[%emt 0:02:08]} 7. Nge2 {[%emt 0:00:08]} dxc4 {[%emt 0:02:22]} 8. Bxc4 {[%emt 0:00:02]} Nbd7 {[%emt 0:00:11] 8...Nc6 deserves study. C01: French: Exchange Variation.} 9. O-O {[%emt 0:01:30]} Nb6 {[%emt 0:00:18]} 10. Bb3 {[%emt 0:00:16]} c6 {[%emt 0:07:47] The position is equal.} 11. Qd3 {[%emt 0:11:49]} Nfd5 {[%emt 0:09:06]} 12. Nf4 {[%emt 0:03:29] [#]} Bd6 $146 {[%emt 0:04:29]} ({Predecessor:} 12... Ne7 13. a3 Bd6 14. Qf3 Ng6 15. Nxg6 hxg6 16. h3 Bb8 17. Re1 a5 18. a4 Bf5 {1-0 (87) Abdulov,O (2339)-Volkov,S (2594) Dubai 2009}) 13. Ncxd5 {[%emt 0:04:31]} Nxd5 {[%emt 0:00:15]} 14. Nxd5 {[%emt 0:00:06]} cxd5 {[%emt 0:00:05]} 15. h3 {[%emt 0:00:03]} Bc7 {[%emt 0:02:46]} 16. Re1 {[%emt 0:08:05][%cal Bf1e1,Be1e5,Be5d5,Bd5d7][%mdl 32]} Qd6 {[%emt 0:09:58]} 17. Re5 {[%emt 0:09:52] Active counter play!} f6 {[%emt 0:04:01]} 18. Rxd5 {[%emt 0:00:54]} Qh2+ {[%emt 0:00:16]} 19. Kf1 {[%emt 0:00:39] Hoping for Rh5+.} Be6 $1 {[%emt 0:01:10] Strongly threatening ...Qh1+.} (19... Qh1+ 20. Ke2 Be6 21. Rd7 $18) 20. Rd7 {[%emt 0:00:51]} (20. Rh5 Rae8 21. Be3 (21. Qxh7+ $2 Kf7 $19) 21... g6 $17) 20... Bxb3 {[%emt 0:09:47] Black is now going downhill.} (20... Rae8 $1 $11 21. Be3 Qh1+ 22. Ke2 Qxa1 23. Bxe6+ Kh8) 21. Qxb3+ $18 {[%emt 0:00:28]} (21. axb3 Rae8 22. Be3 Qh1+ 23. Ke2 Qxa1 $17) 21... Kh8 {[%emt 0:00:21] [#]} 22. Bh6 $1 {[%emt 0:00:20][%mdl 512]} gxh6 {[%emt 0:06:13]} 23. Qc2 {[%emt 0:00:29][%csl Gd7][%cal Rc2h7] Chess con chili.} f5 {[%emt 0:03:24]} (23... Qh1+ $2 24. Ke2 f5 25. Rxh1 $18) 24. Qxc7 {[%emt 0:00:16]} Qh1+ {[%emt 0:00:32]} 25. Ke2 {[%emt 0:00:17]} Qxg2 {[%emt 0:00:06]} 26. Qe5+ $40 {[%emt 0:05:40][%mdl 128] White is out for blood.} (26. Qxb7 Rae8+ 27. Kd3 Qg6 $11) (26. Rxh7+ $6 Kg8 27. Re7 (27. Qxb7 Rae8+ 28. Kd3 Qe4+ 29. Kc3 Rc8+ 30. Kb4 Qxd4+ 31. Ka3 Qc5+ 32. Kb3 Qc4+ 33. Ka3 Qc5+ 34. Ka4 Qd4+ 35. Kb3 Qc4+ 36. Ka3 Qc5+ $11) 27... Rae8) 26... Kg8 {[%emt 0:00:01]} 27. Qd5+ {[%emt 0:00:06]} Qxd5 {[%emt 0:00:06]} 28. Rg1+ {[%emt 0:00:05]} (28. Rxd5 $6 Rae8+ 29. Kf3 Rd8 30. Rg1+ Kh8 31. Rxd8 Rxd8 $16) 28... Kh8 {[%emt 0:00:38] ( -> ...Rae8+)} 29. Rxd5 {[%emt 0:00:02][%mdl 4096] Endgame KRR-KRR} Rf7 {[%emt 0:01:30]} 30. Rd6 {[%emt 0:00:22]} f4 {[%emt 0:04:33]} (30... a5 $16 31. Kd3 (31. Rxh6 Re7+ 32. Kd3 Rd8 $16) 31... Rc8 32. Rxh6 Rd8) 31. Kf3 {[%emt 0:00:34]} (31. Rxh6 $6 Rd7) 31... h5 {[%emt 0:03:36]} 32. Rg5 {[%emt 0:00:52]} Rc8 {[%emt 0:00:43]} 33. h4 {[%emt 0:01:03]} (33. Rxh5 $6 Kg7 34. Rc5 Re8 $18) 33... b6 {[%emt 0:03:46]} 34. d5 {[%emt 0:04:13]} (34. Rxh5 $6 Kg7 35. Rdh6 Kg8 $18) 34... Re7 {[%emt 0:04:26]} 35. Rf6 {[%emt 0:01:04]} ({Resist} 35. Kxf4 $6 Re2 $18) 35... Re1 $2 {[%emt 0:01:14]} (35... Rd8 36. Rxh5 (36. Kxf4 Re2 $16) 36... Red7) 36. Rf7 {[%emt 0:00:42] White is clearly winning.} h6 {[%emt 0:01:29]} 37. Rxh5 {[%emt 0:00:46]} Kg8 {[%emt 0:00:11]} 38. Rxa7 {[%emt 0:00:13]} Rc2 {[%emt 0:00:03]} 39. Rxh6 {[%emt 0:01:55] Threatens to win with Rg6+.} Ree2 {[%emt 0:00:10]} 40. Rg6+ {[%emt 0:01:29]} Kh8 {[%emt 0:00:08]} 41. Kg4 {[%emt 0:03:27] White threatens Kg5 and mate.} Rxf2 {[%emt 0:00:11]} 42. Kh5 {[%emt 0:00:05] White wants to mate with Kh6.} Rh2 {[%emt 0:00:14]} 43. Rg4 {[%emt 0:00:10] Weighted Error Value: White=0.03 (flawless) /Black=0.36} 1-0

[Event "Saint Louis Norm Congress-GM 2022"]
[Site "Saint Louis"]
[Date "2022.05.20"]
[Round "2.5"]
[White "Brodsky, David"]
[Black "Repka, Christopher"]
[Result "1/2-1/2"]
[ECO "C07"]
[WhiteElo "2484"]
[BlackElo "2524"]
[Annotator "TA"]
[PlyCount "78"]
[EventDate "2022.05.20"]
[EventType "tourn"]
[EventCountry "USA"]
[SourceTitle "playchess.com"]
[Source "ChessBase"]
[SourceQuality "1"]
[TimeControl "5400+30"]

{[%evp 14,78,8,12,15,3,13,0,0,0,8,0,0,0,0,0,0,0,0,0,14,8,7,7,6,8,6,0,0,0,0,0,0,0,0,-14,0,0,0,0,0,-5,-2,-5,0,0,0,0,0,0,0,0,0,0,0,0,0,0,0,0,0,0,0,0,0,0,0]} 1. e4 {[%emt 0:00:01]} e6 {[%emt 0:00:02]} 2. d4 {[%emt 0:00:14]} d5 {[%emt 0:00:04]} 3. Nd2 {[%emt 0:00:03]} c5 {[%emt 0:00:03]} 4. Ngf3 {[%emt 0:00:05]} cxd4 {[%emt 0:00:05]} 5. Nxd4 {[%emt 0:00:05]} Nc6 {[%emt 0:00:04]} 6. Bb5 {[%emt 0:00:04]} Bd7 {[%emt 0:00:04]} 7. Nxc6 {[%emt 0:00:06]} bxc6 {[%emt 0:00:02]} 8. Bd3 {[%emt 0:00:09] The position is equal.} Bd6 {[%emt 0:00:01] C07: French Tarrasch: 3...c5, 4 Ngf3 and 4 exd5 Qxd5.} 9. Qe2 {[%emt 0:00:36]} e5 $1 {[%emt 0:01:58][%mdl 4] now scores much better than the old 9...Ne7.} 10. c4 {[%emt 0:00:23]} d4 {[%emt 0:02:27]} 11. c5 {[%emt 0:00:26]} Bxc5 {[%emt 0:01:26]} 12. Nc4 {[%emt 0:00:07]} Bb4+ {[%emt 0:00:33]} 13. Bd2 {[%emt 0:00:05]} Qe7 {[%emt 0:00:04]} 14. O-O {[%emt 0:00:25]} Bxd2 {[%emt 0:00:38]} 15. Qxd2 {[%emt 0:00:05]} Nh6 {[%emt 0:00:04][%cal Bg8h6,Bh6g4,Bg4e3][%mdl 32]} 16. f4 {[%emt 0:00:40]} Ng4 {[%emt 0:01:06]} 17. h3 {[%emt 0:00:43]} Ne3 {[%emt 0:00:05]} 18. Nxe3 {[%emt 0:00:03]} dxe3 {[%emt 0:00:04]} 19. Qxe3 {[%emt 0:00:05]} exf4 {[%emt 0:00:11]} 20. Qxf4 {[%emt 0:00:39] [#]} Be6 $146 {[%emt 0:00:54]} ({Predecessor:} 20... O-O 21. Rac1 Qb4 22. Bc4 Qxb2 23. Bxf7+ Kh8 24. Qd6 Bxh3 25. gxh3 Rxf7 26. e5 Re8 {½-½ (50) Raja,H (2459)-Sturt,R (2494) Banja Vrujci 2021}) 21. b3 {[%emt 0:05:38]} Rd8 {[%emt 0:02:25]} 22. Rfd1 {[%emt 0:02:44]} O-O {[%emt 0:00:55]} 23. Rac1 {[%emt 0:08:44]} Rd4 {[%emt 0:10:28]} 24. Be2 {[%emt 0:10:52]} Rxd1+ {[%emt 0:01:37]} 25. Rxd1 {[%emt 0:00:05][%cal Bc1d1,Bd1d3,Bd3c3][%mdl 32]} Qc5+ {[%emt 0:03:24]} 26. Qf2 {[%emt 0:02:08]} Qg5 {[%emt 0:00:07]} 27. Rd3 {[%emt 0:03:16]} c5 {[%emt 0:07:13]} 28. Qe3 {[%emt 0:02:49]} Qe5 {[%emt 0:04:29]} 29. Rc3 {[%emt 0:02:04]} Rc8 {[%emt 0:00:50]} 30. Bc4 {[%emt 0:03:54]} Bxc4 {[%emt 0:04:55]} 31. Rxc4 $11 {[%emt 0:00:06][%mdl 4096] Endgame KQR-KQR} Qa1+ {[%emt 0:08:45]} 32. Kh2 {[%emt 0:00:28]} Qxa2 {[%emt 0:03:53]} 33. Rxc5 {[%emt 0:00:06]} Rxc5 {[%emt 0:00:25]} 34. Qxc5 {[%emt 0:00:04][%cal Rc5c8] [#] KQ-KQ} Qa6 {[%emt 0:00:18] Inhibits Qc8+.} 35. Qe7 {[%emt 0:02:04][%cal Re7e8]} g6 {[%emt 0:03:24]} 36. Qd8+ {[%emt 0:00:13]} Kg7 {[%emt 0:00:06]} 37. Qd4+ {[%emt 0:00:03]} Kf8 {[%emt 0:00:58]} 38. Qd8+ {[%emt 0:00:15]} Kg7 {[%emt 0:00:05]} 39. Qd4+ {[%emt 0:00:02]} Kf8 {[%emt 0:03:59] An even fight not without its subleties.  Weighted Error Value: White=0.02 (flawless) /Black=0.01 (flawless)} 1/2-1/2

[Event "Saint Louis Norm Congress-GM 2022"]
[Site "Saint Louis"]
[Date "2022.05.20"]
[Round "3.1"]
[White "Repka, Christopher"]
[Black "Stearman, Josiah"]
[Result "1/2-1/2"]
[ECO "E48"]
[WhiteElo "2524"]
[BlackElo "2375"]
[Annotator "TA"]
[PlyCount "106"]
[EventDate "2022.05.20"]
[EventType "tourn"]
[EventCountry "USA"]
[SourceTitle "playchess.com"]
[Source "ChessBase"]
[SourceQuality "1"]
[TimeControl "5400+30"]

{[%evp 13,106,0,0,0,0,0,0,-12,6,0,27,30,18,12,22,15,21,18,68,63,60,54,66,70,64,81,108,104,91,83,88,84,170,87,103,89,86,20,25,0,0,0,132,135,137,136,136,13,70,12,8,8,8,8,8,4,8,0,0,0,8,10,29,20,17,25,35,8,8,8,8,8,8,8,17,8,14,0,0,0,0,0,0,0,0,0,0,0,0,0,0,0,0,0,0]} 1. d4 {[%emt 0:00:02]} Nf6 {[%emt 0:00:04]} 2. c4 {[%emt 0:00:06]} e6 {[%emt 0:00:04]} 3. Nc3 {[%emt 0:00:05]} Bb4 {[%emt 0:00:08]} 4. e3 {[%emt 0:00:06]} O-O {[%emt 0:00:44]} 5. Bd3 {[%emt 0:00:03]} d5 {[%emt 0:00:06]} 6. cxd5 {[%emt 0:01:18]} exd5 {[%emt 0:00:17]} 7. Nge2 {[%emt 0:00:05]} b6 {[%emt 0:01:47]} 8. O-O {[%emt 0:02:08] E48: Nimzo-Indian: Rubinstein: 5 Bd3 d5 including 6 Ne2, but excluding 6 a3.} Re8 {[%emt 0:00:30]} 9. a3 {[%emt 0:06:12]} Bd6 {[%emt 0:00:44] [#]} 10. Nf4 $146 {[%emt 0:04:19]} ({Predecessor:} 10. b4 a6 11. Rb1 Nbd7 12. f3 c5 13. bxc5 bxc5 14. Nf4 cxd4 15. exd4 Nb6 16. Re1 {½-½ (24) Andersen,M (2542)-Grandelius,N (2642) Denmark 2017}) 10... Bxf4 {[%emt 0:09:01]} 11. exf4 {[%emt 0:00:21]} Ba6 {[%emt 0:00:20]} (11... Nc6 $5 {[%cal Rc6d4]}) 12. Bxa6 {[%emt 0:00:25]} Nxa6 {[%emt 0:00:02]} 13. Qd3 {[%emt 0:00:39]} Nb8 {[%emt 0:00:38]} 14. f5 {[%emt 0:00:32]} Ne4 {[%emt 0:06:13]} 15. Bf4 {[%emt 0:00:11]} c6 {[%emt 0:00:49]} (15... Qd7 $11) 16. Rae1 {[%emt 0:04:27][%cal Rc3e4]} Nf6 {[%emt 0:04:37]} 17. Qf3 {[%emt 0:02:01]} Nbd7 {[%emt 0:00:41]} 18. g4 {[%emt 0:00:40]} h6 {[%emt 0:01:04]} 19. h4 {[%emt 0:00:04]} Nh7 {[%emt 0:00:31] Against g5} 20. Rxe8+ {[%emt 0:01:56]} Qxe8 {[%emt 0:00:01]} 21. g5 {[%emt 0:00:06]} hxg5 {[%emt 0:00:44]} 22. hxg5 {[%emt 0:00:04]} g6 {[%emt 0:00:45] [#]} (22... Qe7 $16 {keeps fighting.}) 23. Kg2 {[%emt 0:02:58]} (23. f6 $1 $18) 23... Ndf8 {[%emt 0:00:24]} 24. Rh1 {[%emt 0:04:11]} Qd7 {[%emt 0:00:41] [#]} 25. fxg6 {[%emt 0:06:40] 0x0.00226ac98716dp-1022s more active pieces.} ({Better is} 25. f6 $1 $16 Qf5 26. Be3) 25... Nxg6 $11 {[%emt 0:00:18]} 26. Be5 {[%emt 0:19:12]} (26. Be3 $5 {[%cal Rc3e2]}) 26... Nxe5 {[%emt 0:05:19]} 27. dxe5 {[%emt 0:00:34]} Re8 {[%emt 0:02:33]} (27... Qe7 $11 {keeps the balance.}) 28. Qh5 $16 {[%emt 0:08:24]} Qf5 {[%emt 0:00:15]} 29. f4 {[%emt 0:00:04]} Qg6 {[%emt 0:01:58]} 30. Qf3 {[%emt 0:00:52]} (30. Ne2 $16) 30... f6 {[%emt 0:01:09]} (30... Nxg5 $11 31. fxg5 Rxe5) 31. Rh6 {[%emt 0:16:53]} (31. exf6 $14 d4 32. f7+ (32. Qxc6 dxc3 33. Qd5+ Kf8 $11) 32... Kxf7 33. Nd1) 31... Qc2+ $11 {[%emt 0:00:09]} 32. Qf2 {[%emt 0:01:17]} Qxf2+ {[%emt 0:03:15]} 33. Kxf2 {[%emt 0:00:05]} fxg5 {[%emt 0:00:33]} 34. Rxc6 {[%emt 0:00:04]} gxf4 {[%emt 0:00:08]} 35. Nxd5 {[%emt 0:00:07] Hoping for e6.} Rxe5 {[%emt 0:00:16][%mdl 4096] Endgame KRN-KRN} 36. Rc8+ {[%emt 0:00:01]} Nf8 {[%emt 0:02:19]} 37. Nxf4 {[%emt 0:00:10][%cal Oc8f8] And now Rxf8+! would win.} Re7 {[%emt 0:02:02]} 38. Ng6 {[%emt 0:01:57]} Rf7+ {[%emt 0:00:05]} 39. Ke3 {[%emt 0:00:50] Ke4 is the strong threat.} Kg7 $1 {[%emt 0:01:00]} 40. Nf4 {[%emt 0:00:45]} (40. Ne5 $5 {[%cal Re5f7]} Re7 41. Kd4 $11) 40... Rd7 {[%emt 0:01:20] The position is equal.} 41. Ke4 {[%emt 0:03:35]} Kf7 {[%emt 0:00:23]} 42. Kf5 {[%emt 0:01:50]} Ke7 {[%emt 0:01:49]} 43. Ke5 {[%emt 0:00:20]} Kf7 {[%emt 0:00:57]} 44. b4 {[%emt 0:02:52]} a5 {[%emt 0:05:57]} 45. b5 {[%emt 0:01:20]} Rd1 {[%emt 0:00:10]} 46. Ke4 {[%emt 0:03:07]} Nd7 {[%emt 0:00:53]} 47. Nd3 {[%emt 0:00:12]} Ke7 {[%emt 0:00:54]} 48. a4 {[%emt 0:00:51]} Ra1 {[%emt 0:01:42]} 49. Rc4 {[%emt 0:00:04]} Ra3 {[%emt 0:00:28]} 50. Nb2 {[%emt 0:02:42]} Ra2 {[%emt 0:02:33]} 51. Nd3 {[%emt 0:00:06]} Ra3 {[%emt 0:00:06]} 52. Nb2 {[%emt 0:03:26]} Ra2 {[%emt 0:00:55]} 53. Nd3 {[%emt 0:00:14]} Ra3 {[%emt 0:00:07] Weighted Error Value: White=0.16 (very precise) /Black=0.14 (very precise)} 1/2-1/2

[Event "Saint Louis Norm Congress-GM 2022"]
[Site "Saint Louis"]
[Date "2022.05.20"]
[Round "3.2"]
[White "Park, Evan"]
[Black "Brodsky, David"]
[Result "0-1"]
[ECO "B90"]
[WhiteElo "2431"]
[BlackElo "2484"]
[Annotator "TA"]
[PlyCount "74"]
[EventDate "2022.05.20"]
[EventType "tourn"]
[EventCountry "USA"]
[SourceTitle "playchess.com"]
[Source "ChessBase"]
[SourceQuality "1"]
[TimeControl "5400+30"]

{[%evp 13,74,10,35,-6,26,0,-1,0,46,36,15,4,11,12,18,19,0,7,23,-26,-36,-32,-29,-25,-48,-48,94,-46,-46,-54,-37,-68,-60,-68,-58,-95,-102,-436,-210,-334,-316,-297,-312,-566,-570,-1110,-1041,-987,-1008,-1384,-1374,-1366,-1338,-1576,-1531,-1930,-1777,-1788,-1737,-29973,-29974,-29993,-29994]} 1. e4 {[%emt 0:00:02]} c5 {[%emt 0:00:04]} 2. Nf3 {[%emt 0:00:03]} d6 {[%emt 0:00:03]} 3. d4 {[%emt 0:00:02]} cxd4 {[%emt 0:00:05]} 4. Nxd4 {[%emt 0:00:05]} Nf6 {[%emt 0:00:04]} 5. Nc3 {[%emt 0:00:15]} a6 {[%emt 0:00:04]} 6. Be3 {[%emt 0:00:52]} e5 {[%emt 0:00:06]} 7. Nb3 {[%emt 0:00:04]} Be7 {[%emt 0:00:04]} 8. h3 {[%emt 0:00:43] B90: Sicilian Najdorf: Unusual White 6th moves, 6 Be3 Ng4 and 6 Be3 e5.} Be6 {[%emt 0:00:48]} 9. Qf3 {[%emt 0:02:49]} O-O {[%emt 0:00:26]} 10. g4 {[%emt 0:01:17] The position is equal.} d5 {[%emt 0:07:14]} (10... b5 $11 {might be stronger.}) 11. exd5 {[%emt 0:18:57]} Nxd5 {[%emt 0:06:18]} 12. O-O-O {[%emt 0:02:50][%cal Rc3d5]} Nxc3 {[%emt 0:00:33]} 13. Rxd8 {[%emt 0:03:41]} Rxd8 {[%emt 0:00:17] Really sharp!} 14. bxc3 {[%emt 0:21:32]} Bd5 {[%emt 0:00:39]} 15. Qf5 {[%emt 0:02:11][%cal Of1d3]} Bxh1 {[%emt 0:21:11] [#]} 16. Bc4 $146 {[%emt 0:00:32]} (16. Bc5 $142 Nc6 17. Bxe7 Nxe7 18. Qxe5) ({Predecessor:} 16. Kb2 Bd5 17. Bb6 Be6 18. Qe4 Rd7 19. Bd3 g6 20. Qxe5 Nc6 21. Qe3 Bf6 22. f4 {1-0 (41) Hansen,E (2568)-Kvetny,M (2201) Basel 2013}) 16... Bd5 $1 $11 {[%emt 0:00:45]} 17. Bxd5 {[%emt 0:02:54]} Rxd5 {[%emt 0:00:18]} 18. Qc8+ {[%emt 0:01:19]} Rd8 {[%emt 0:00:09]} 19. Qxb7 {[%emt 0:00:10]} Ba3+ $1 {[%emt 0:01:08]} 20. Kb1 {[%emt 0:00:03]} Nd7 {[%emt 0:00:51][%cal Od7c5] ...Nc5! is the strong threat.} 21. Bc1 {[%emt 0:02:15]} Bf8 {[%emt 0:06:23]} 22. Qd5 {[%emt 0:06:46]} a5 {[%emt 0:04:26][%cal Od7c5]} 23. a4 {[%emt 0:01:39] [#]} ({Don't blunder} 23. Nxa5 $2 Nc5 24. Qxe5 Rxa5 $19) 23... Nc5 $1 {[%emt 0:01:22]} 24. Qxe5 {[%emt 0:03:51]} (24. Qc4 Nxb3) 24... Nxa4 {[%emt 0:00:32]} 25. Be3 $2 {[%emt 0:00:42][%mdl 8192] White does not recover from this.} (25. Bd2 $17 {is a better chance.}) 25... Bd6 {[%emt 0:08:36]} (25... Rd1+ $142 26. Bc1 g6) 26. Qf5 {[%emt 0:04:12]} (26. Qd4 {was forced.} Bb4 27. cxb4 Rxd4 28. Nxd4 axb4 29. Ka2) 26... Nxc3+ $19 {[%emt 0:00:27]} 27. Kb2 {[%emt 0:00:25]} Nd1+ {[%emt 0:01:44]} 28. Ka2 $2 {[%emt 0:00:04]} (28. Ka1 Bb4 29. Bb6) 28... a4 {[%emt 0:00:41][%cal Ba5a4,Ba4a3,Ba3a2][%mdl 32]} 29. Nd4 {[%emt 0:01:53]} Nc3+ {[%emt 0:00:46]} 30. Kb2 {[%emt 0:00:10]} Rdc8 {[%emt 0:01:14] [#] And now ...Rab8+ would win.} 31. Kc1 {[%emt 0:02:12]} a3 {[%emt 0:00:53] Threatens to win with ...a2.} 32. Nb3 {[%emt 0:00:58]} a2 {[%emt 0:00:26]} 33. Kd2 {[%emt 0:00:06]} Bb4 {[%emt 0:00:47] Hoping for ...Rd8+.} 34. Bd4 {[%emt 0:00:47]} g6 {[%emt 0:02:06]} 35. Qe5 {[%emt 0:01:28]} Nb5+ {[%emt 0:00:06]} 36. c3 {[%emt 0:01:09]} Nxd4 {[%emt 0:00:10]} 37. Qg7+ {[%emt 0:01:05]} Kxg7 {[%emt 0:00:05] Weighted Error Value: White=1.12/Black=0.10 (very precise)} 0-1